Cogmind - Beta 13 @@@ ROGUE MODE // 2024.04.12 @ 13:20:51 Player: mehbruh Result: Self-destructed Performance ------------- Evolutions (4) 2000 Regions Visited (11) 2200 Robots Destroyed (149) 745 Value Destroyed (4563) 4563 Prototype IDs (51) 1020 Alien Tech Used (0) 0 Bonus (876) 876 TOTAL SCORE: 11404 Bonus ------- High Alert Combat Kills 241 Follower Combat Kills 35 Aligned with FarCom 300 Met Data Miner 300 Cogmind --------- Core Integrity 780/850 Matter 106/300 Energy 290/290 System Corruption 0% Temperature Cool (0) Movement Treading (225) Ox1 Location -6/Factory Parts ------- > --- POWER (1) -------- Improved Deuterium Engine > --- PROPULSION (4) --- Advanced Treads Advanced Treads Advanced Treads > --- UTILITY (6) ------ Improved Heat Sink High-capacity Storage Unit Structural Scanner Advanced Targeting Computer > --- WEAPON (4) ------- Gauss Rifle Gauss Rifle Gauss Rifle Heavy Rocket Launcher > --- INVENTORY (20) --- Improved Deuterium Engine Light Treads Advanced Treads Medium Treads Target Analyzer Recoil Stabilizer Weapon Cycler Weapon Cycler Transmission Jammer Hardened Medium Armor Plating Medium Reactive Plating System Restoration Module Long-range Tractor Beam Cooled Pulse Rifle Guided Plasma Cannon Gauss Rifle Heavy Machine Gun Long-range Missile Launcher Great Axe Peak State ------------ > --- POWER ------------ Improved Deuterium Engine > --- PROPULSION ------- Advanced Treads Advanced Treads Advanced Treads Advanced Treads > --- UTILITY ---------- Improved Heat Sink High-capacity Storage Unit Advanced Targeting Computer Weapon Cycler Hardened Heavy Armor Plating > --- WEAPON ----------- Cooled Pulse Rifle Gauss Rifle Gauss Rifle Heavy Machine Gun > --- INVENTORY -------- Improved Deuterium Engine Light Treads Advanced Treads Medium Treads Target Analyzer Recoil Stabilizer Weapon Cycler Transmission Jammer Hardened Medium Armor Plating Medium Reactive Plating System Restoration Module Long-range Tractor Beam Guided Plasma Cannon Gauss Rifle Gauss Rifle Heavy Rocket Launcher Long-range Missile Launcher Great Axe [Rating: 59] Favorites ----------- Power Improved Deuterium Engine Engine Improved Deuterium Engine Power Core Nuclear Core Propulsion Advanced Treads Treads Advanced Treads Utility Improved Heat Sink Device Improved Heat Sink Storage High-capacity Storage Unit Processor Advanced Targeting Computer Protection Hardened Medium Armor Plating Weapon Minigun Energy Gun Cooled Pulse Rifle Energy Cannon Guided Plasma Cannon Ballistic Gun Minigun Launcher Heavy Rocket Launcher Special Weapon Mining Laser Impact Weapon Powered Hammer Slashing Weapon Great Axe Special Melee Weapon Datajack Build | -11 -10 -10 -10 -9 -8 -7 -7 -7 -7 -6 -6 ------- Run | Yrd Mat Min Exi Min Mat Fac Low Low Dat Pro Fac Slots Evolved 8 | . . . . . 4 2 . . . . 2 Power . | . . . . . . . . . . . . Propulsion 2 | . . . . . 1 1 . . . . . Utility 4 | . . . . . 1 1 . . . . 2 Weapon 2 | . . . . . 2 . . . . . . Parts Attached 127 | 6 15 2 1 7 28 50 1 . . . 17 Power 12 | 1 2 . . . 3 5 . . . . 1 Engine 7 | 1 2 . . . 2 1 . . . . 1 Core 5 | . . . . . 1 4 . . . . . Reactor . | . . . . . . . . . . . . Propulsion 24 | 2 1 1 . 1 4 14 . . . . 1 Treads 24 | 2 1 1 . 1 4 14 . . . . 1 Leg . | . . . . . . . . . . . . Wheel . | . . . . . . . . . . . . Hover . | . . . . . . . . . . . . Flight . | . . . . . . . . . . . . Utility 27 | 1 3 . . 1 9 10 . . . . 3 Device 11 | . 1 . . 1 2 6 . . . . 1 Storage 5 | 1 1 . . . 3 . . . . . . Processor 1 | . . . . . . . . . . . 1 Hackware . | . . . . . . . . . . . . Protection 10 | . 1 . . . 4 4 . . . . 1 Artifact . | . . . . . . . . . . . . Weapon 64 | 2 9 1 1 5 12 21 1 . . . 12 Energy Gun 11 | . . 1 . . 3 4 . . . . 3 Energy Cannon 1 | . . . . 1 . . . . . . . Ballistic Gun 33 | 2 6 . . 3 6 10 1 . . . 5 Ballistic Cannon . | . . . . . . . . . . . . Launcher 4 | . 2 . . . 1 . . . . . 1 Special Weapon 1 | . 1 . . . . . . . . . . Impact Weapon 5 | . . . . . . 5 . . . . . Slashing Weapon 8 | . . . . 1 2 2 . . . . 3 Piercing Weapon . | . . . . . . . . . . . . Special Melee Weapon 1 | . . . 1 . . . . . . . . Unidentified Prototypes 1 | . . . . . 1 . . . . . . Parts Lost 5 | . . . . . . . 1 . . . 4 Power . | . . . . . . . . . . . . Propulsion 1 | . . . . . . . . . . . 1 Utility 1 | . . . . . . . . . . . 1 Weapon 3 | . . . . . . . 1 . . . 2 Highest Loss Streak 2 | . . . . . . . 1 . . . 2 To Critical Strikes . | . . . . . . . . . . . . Average Slot Usage (%) 97 | . 92 100 100 99 98 99 99 100 100 100 92 Engine 7 | . 14 14 14 14 5 2 7 7 7 7 5 Core 2 | . . . . . 3 4 . . . . . Treads 28 | . 28 28 28 27 27 29 30 30 30 30 25 Device 9 | . . . . 1 10 14 15 15 15 15 13 Storage 9 | . 14 14 14 14 9 7 7 7 7 7 6 Protection 7 | . 6 14 14 12 5 7 7 7 7 7 6 Energy Gun 3 | . . 13 14 7 2 1 7 7 7 7 5 Ballistic Gun 24 | . 27 14 . 18 31 27 22 23 23 23 20 Naked Turns . | . . . . . . . . . . . . Heaviest Build 88 | 14 32 33 32 38 62 73 74 74 74 74 88 Greatest Support 106 | 40 40 42 42 42 62 106 88 88 88 88 88 Greatest Overweight (x) 1 | . . . . 1 . 1 . . . . . Average Overweight (x) . | . . . . . . . . . . . . Largest Inventory Capacity 20 | 8 15 15 15 15 20 20 20 20 20 20 20 Average Capacity 18 | 7 13 15 15 15 19 20 20 20 20 20 20 Most Carried 20 | 3 14 15 15 15 20 20 20 20 20 20 19 Average Carried 17 | 2 9 14 14 15 17 19 19 19 20 20 18 Final Capacity 20 | 8 15 15 15 15 20 20 20 20 20 20 20 Final Carried 20 | 3 13 15 15 15 20 20 19 20 20 20 19 Class Distribution -------------------- 39% | Skirmisher 30% | Mutant 10% | Tank 10% | Gunner 8% | Scavenger-Skirmisher Dominant Class ---------------- Mutant | -10/Materials Mutant | -10/Mines Mutant | -10/Exiles Mutant | -9/Mines Skirmisher | -8/Materials Skirmisher | -7/Factory Tank | -7/Lower Caves Tank | -7/Lower Caves Tank | -7/Data Miner Tank | -6/Proximity Caves Gunner | -6/Factory Resources | -11 -10 -10 -10 -9 -8 -7 -7 -7 -7 -6 -6 ----------- Run | Yrd Mat Min Exi Min Mat Fac Low Low Dat Pro Fac Matter Collected 4524 | 235 447 334 . 146 657 1697 386 216 . . 406 Remotely . | . . . . . . . . . . . . Salvage Created 5202 | . 525 78 . 307 849 1626 673 302 . . 842 Parts 302 | . 37 2 . 19 70 95 16 14 . . 49 Haulers Intercepted 6 | . 2 . . . 3 1 . . . . . Recyclers Shooed 7 | . 2 . . . . 3 . . . . 2 Parts Field Recycled . | . . . . . . . . . . . . Retrieved Matter . | . . . . . . . . . . . . Parts Self-Destructed 36 | . . . . . . . 16 17 . 3 . Prevented . | . . . . . . . . . . . . Kills | -11 -10 -10 -10 -9 -8 -7 -7 -7 -7 -6 -6 ------- Run | Yrd Mat Min Exi Min Mat Fac Low Low Dat Pro Fac Combat Hostiles Destroyed 98 | . 13 2 . 9 16 20 12 7 . . 19 Guns 83 | . 9 2 . 7 13 20 12 7 . . 13 Cannons 2 | . . . . 2 . . . . . . . AOE 13 | . 4 . . . 3 . . . . . 6 Classes Destroyed 16 | . 6 . . 2 3 2 1 . . . 2 Worker 14 | . 3 1 . 1 3 3 . . . . 3 Builder 9 | . . . . . 3 3 . . . . 3 Tunneler 5 | . . . . 2 . 2 . . . . 1 Hauler 6 | . 2 . . . 3 1 . . . . . Recycler 2 | . . . . . 1 1 . . . . . Operator 3 | . 2 . . . . 1 . . . . . Watcher 12 | . 2 . . . 3 6 . . . . 1 Swarmer 25 | . 5 . . 4 10 . . 3 . . 3 Saboteur 1 | . . . . . . . . . . . 1 Grunt 41 | . 8 2 . 4 2 7 8 3 . . 7 Brawler 4 | . . . . . . . 2 . . . 2 Duelist 4 | . . . . 1 . . 1 . . . 2 Protector 1 | . . . . . . . . . . . 1 Sentry 11 | . . . . . 4 6 1 . . . . Hunter 3 | . . . . . . 2 . 1 . . . Programmer 8 | . . . . . . 5 . . . . 3 Best Kill Streak 9 | . 4 2 . 5 8 4 9 3 . . 8 Combat Bots Only 9 | . 3 2 . 4 5 3 9 3 . . 6 Max Kills in Single Turn 3 | . 2 1 . 2 2 1 2 1 . . 3 Gunslinging 1 | . . . . 1 1 . 1 . . . . Exploded 2 | . 2 . . . 2 . . . . . 2 Melee . | . . . . . . . . . . . . Uniques/NPCs Destroyed . | . . . . . . . . . . . . Combat | -11 -10 -10 -10 -9 -8 -7 -7 -7 -7 -6 -6 -------- Run | Yrd Mat Min Exi Min Mat Fac Low Low Dat Pro Fac Hostile Shots Fired 431 | . 57 3 . 32 37 148 33 28 . . 93 Missed 138 | . 15 1 . 7 12 51 11 12 . . 29 Damage Taken 4062 | . 396 23 . 250 292 1008 453 217 . . 1423 Core 242 | . 59 . . 23 . 43 31 16 . . 70 Absorbed by Shields . | . . . . . . . . . . . . Regen/Repaired (Parts) 262 | . . . . . . 262 . . . . . Core Remaining (%) 88 | 100 . . . 67 100 . . . . 87 . Volleys Fired 287 | . 64 3 . 27 37 80 21 18 . . 37 Largest 4 | . 2 2 . 2 4 4 4 4 . . 4 Hottest 123 | . 100 83 . 120 123 98 95 98 . . 123 Shots Fired 894 | . 127 6 . 38 140 318 78 63 . . 124 Gun 874 | . 120 6 . 30 138 318 78 63 . . 121 Cannon 8 | . . . . 8 . . . . . . . Launcher 11 | . 6 . . . 2 . . . . . 3 Special 1 | . 1 . . . . . . . . . . Kinetic 796 | . 120 3 . 24 123 313 57 54 . . 102 Thermal 87 | . 1 3 . 14 15 5 21 9 . . 19 Explosive 11 | . 6 . . . 2 . . . . . 3 Electromagnetic . | . . . . . . . . . . . . Robot Hit Streak 51 | . 8 4 . 10 20 16 51 9 . . 12 Robot Miss Streak 6 | . 6 3 . 3 4 4 1 3 . . 4 Penetration Max 1 | . . . . . . . . 1 . . 1 Secondary Targets 12 | . . . . 1 3 . 3 1 . . 4 Max Gunslinging Chain 1 | . . . . 1 1 . 1 1 . . 1 Shots Hit Robots 589 | . 63 3 4 25 90 209 63 39 . . 93 Core Hits 255 | . 35 3 . 13 42 73 23 15 . . 51 Critical Kills 2 | . . . . . 2 . . . . . . Critical Parts Destroyed 2 | . . . . . . . . 1 . . 1 Critical Strikes 8 | . . 1 . . 2 1 1 1 . . 2 Burn 4 | . . 1 . . . 1 1 . . . 1 Destroy 4 | . . . . . 2 . . 1 . . 1 Melee Attacks 46 | . . . 4 2 7 21 . . . . 12 Impact 9 | . . . . . . 9 . . . . . Slashing 32 | . . . . 1 7 12 . . . . 12 Piercing . | . . . . . . . . . . . . Sneak Attacks 20 | . . . 4 1 3 8 . . . . 4 Combat Hostiles . | . . . . . . . . . . . . Follow-up Attacks . | . . . . . . . . . . . . Damage Inflicted 13529 | . 1274 74 . 531 1749 4271 1164 691 . . 3775 Guns 9567 | . 803 49 . 227 1222 3514 1164 691 . . 1897 Cannons 288 | . . . . 288 . . . . . . . Explosions 2283 | . 442 . . . 318 . . . . . 1523 Melee 1164 | . . . . . 191 642 . . . . 331 Ramming 227 | . 29 25 . 16 18 115 . . . . 24 Kinetic 8592 | . 803 14 . 139 1070 3460 870 592 . . 1644 Thermal 1638 | . . 35 . 376 152 54 294 99 . . 628 Explosive 1908 | . 442 . . . 318 . . . . . 1148 Electromagnetic . | . . . . . . . . . . . . Impact . | . . . . . . . . . . . . Slashing 1164 | . . . . . 191 642 . . . . 331 Piercing . | . . . . . . . . . . . . Highest Corruption 4 | . . . . . . 4 . . . . . Average Corruption 2 | . . . . . . 2 . . . . . Corruption Purged 4 | . . . . . . 4 . . . . . Corruption Blocked . | . . . . . . . . . . . . Effects 33 | . . . . . . 33 . . . . . Message Errors 4 | . . . . . . 4 . . . . . Matter Fused 10 | . . . . . . 10 . . . . . Heat Flow Errors 5 | . . . . . . 5 . . . . . Energy Discharges 4 | . . . . . . 4 . . . . . Parts Fused 2 | . . . . . . 2 . . . . . Data Loss (minor) 3 | . . . . . . 3 . . . . . Data Loss (major) 3 | . . . . . . 3 . . . . . Alerts 1 | . . . . . . 1 . . . . . Weapon Failures 1 | . . . . . . 1 . . . . . Overload Shots . | . . . . . . . . . . . . Overflow Damage 564 | . 45 . . 8 6 283 . . . . 222 Projectiles 8 | . . . . 8 . . . . . . . Explosions 138 | . 45 . . . 6 . . . . . 87 Melee 418 | . . . . . . 283 . . . . 135 Knockbacks 1 | . . . . . 1 . . . . . . Impact 1 | . . . . . 1 . . . . . . Kinetic . | . . . . . . . . . . . . Secondary . | . . . . . . . . . . . . Self-Inflicted Damage 263 | . . . . . . . . . . . 263 Shots 3 | . . . . . . . . . . . 3 Rammed 26 | . 6 5 . 5 2 8 . . . . . Targets Rammed 32 | . 7 6 . 6 3 9 . . . . 1 Kicked . | . . . . . . . . . . . . Crushed 6 | . 1 1 . 1 1 1 . . . . 1 Highest Temperature 388 | . 26 96 . 388 24 243 144 61 . . 297 Average Temperature 58 | . 12 48 . 135 6 42 61 19 . . 87 Received Heat Transfer 1098 | . 96 15 . 75 81 276 144 9 . . 402 Effects 2 | . . . . . . . . . . . 2 Energy Bleed 2 | . . . . . . . . . . . 2 Siege Activations . | . . . . . . . . . . . . Robots Corrupted . | . . . . . . . . . . . . Combat Hostiles . | . . . . . . . . . . . . Parts Fried . | . . . . . . . . . . . . Impact Corruptions 2 | . . . . . . 1 . . . . 1 Robots Melted . | . . . . . . . . . . . . Combat Hostiles . | . . . . . . . . . . . . Parts Melted 6 | . . 2 . 4 . . . . . . . Heat Transferred 3110 | . . 148 . 825 333 185 629 185 . . 805 Parts Sabotaged . | . . . . . . . . . . . . Parts Stolen . | . . . . . . . . . . . . Parts Stripped . | . . . . . . . . . . . . Power Chain Reactions . | . . . . . . . . . . . . Alert | -11 -10 -10 -10 -9 -8 -7 -7 -7 -7 -6 -6 ------- Run | Yrd Mat Min Exi Min Mat Fac Low Low Dat Pro Fac Peak Influence 673 | . 230 63 . 141 407 493 . . . . 673 Initial 306 | . . 8 . . 54 7 . . . . 306 Average 170 | . 91 9 . 40 155 147 . . . . 506 Maximum Alert Level 2 | . 1 . . . 2 2 . . . . 2 Low Security (%) 66 | 100 86 100 . 100 57 74 . . . . . Level 1 14 | . 13 . . . 42 7 . . . . 10 Level 2 19 | . . . . . . 18 . . . . 89 Level 3 . | . . . . . . . . . . . . Level 4 . | . . . . . . . . . . . . Level 5 . | . . . . . . . . . . . . High Security . | . . . . . . . . . . . . Max Security . | . . . . . . . . . . . . Squads Dispatched 25 | . 4 1 . . 2 10 . . . . 8 Investigation 4 | . 2 1 . . . 1 . . . . . Extermination 7 | . . . . . . 5 . . . . 2 Reinforcement 9 | . 2 . . . 2 3 . . . . 2 Assault 4 | . . . . . . . . . . . 4 Garrison 1 | . . . . . . 1 . . . . . Intercept . | . . . . . . . . . . . . Searches Triggered . | . . . . . . . . . . . . Construction Impeded 3 | . . . . . 1 . . . . . 2 Haulers Reinforced 1 | . . . . . . 1 . . . . . Active Scanning Responses . | . . . . . . . . . . . . Cargo Convoy Interrupts . | . . . . . . . . . . . . Stealth | -11 -10 -10 -10 -9 -8 -7 -7 -7 -7 -6 -6 --------- Run | Yrd Mat Min Exi Min Mat Fac Low Low Dat Pro Fac Distress Signals 7 | . 1 . . . 3 2 . . . . 1 Communications Jammed . | . . . . . . . . . . . . Distress Signals . | . . . . . . . . . . . . Times Spotted 140 | . 25 2 . 9 29 34 12 8 . . 21 Peak Tracking Total 9 | . 5 2 . 3 7 3 9 4 . 1 6 Tactical Retreats 5 | . 4 . . . 1 . . . . . . Traps | -11 -10 -10 -10 -9 -8 -7 -7 -7 -7 -6 -6 ------- Run | Yrd Mat Min Exi Min Mat Fac Low Low Dat Pro Fac Traps Triggered 7 | . 3 . . . . 3 . . . . 1 Indirectly . | . . . . . . . . . . . . Trap Hack Attempts . | . . . . . . . . . . . . Triggered . | . . . . . . . . . . . . Disarmed . | . . . . . . . . . . . . Reprogrammed . | . . . . . . . . . . . . Reused . | . . . . . . . . . . . . Traps Extracted . | . . . . . . . . . . . . Installed . | . . . . . . . . . . . . Triggered . | . . . . . . . . . . . . Machines | -11 -10 -10 -10 -9 -8 -7 -7 -7 -7 -6 -6 ---------- Run | Yrd Mat Min Exi Min Mat Fac Low Low Dat Pro Fac Machines Disabled 17 | . 3 . . . 1 2 . . . . 11 Max in Single Turn 5 | . 1 . . . 1 1 . . . . 5 Garrison Access 4 | . . . . . . 3 . . . . 1 Machines Repaired . | . . . . . . . . . . . . Machines Dismantled . | . . . . . . . . . . . . Machines Sabotaged . | . . . . . . . . . . . . Overloaded Fab Kills . | . . . . . . . . . . . . Hacking | -11 -10 -10 -10 -9 -8 -7 -7 -7 -7 -6 -6 --------- Run | Yrd Mat Min Exi Min Mat Fac Low Low Dat Pro Fac Machines Accessed 47 | . 6 1 3 . 9 21 . . 4 . 3 Terminals 23 | . 5 . . . 7 10 . . . . 1 Fabricators 1 | . . . . . . 1 . . . . . Repair Stations 6 | . 1 . . . 1 4 . . . . . Recycling Units 2 | . . . . . 1 1 . . . . . Scanalyzers 3 | . . . . . . 2 . . . . 1 Garrison Access 4 | . . . . . . 3 . . . . 1 Total Hacks 162 | . 19 1 33 . 25 48 . . 29 . 7 Successful 116 | . 11 1 33 . 11 27 . . 29 . 4 Failed 45 | . 7 . . . 14 21 . . . . 3 Catastrophic 3 | . . . . . 1 . . . . . 2 Database Lockouts 1 | . 1 . . . . . . . . . . Manual 44 | . 11 . 1 . 17 15 . . . . . Terminals 64 | . 16 . . . 22 25 . . . . 1 Fabricators 1 | . . . . . . 1 . . . . . Repair Stations 15 | . 3 . . . 1 11 . . . . . Recycling Units 3 | . . . . . 2 1 . . . . . Scanalyzers 10 | . . . . . . 5 . . . . 5 Garrison Access 6 | . . . . . . 5 . . . . 1 Terminal Hacks 83 | . 6 1 33 . 5 9 . . 29 . . Record 44 | . . . 32 . . 1 . . 11 . . Part Schematic 10 | . . . . . . . . . 10 . . Robot Schematic 5 | . . . . . . . . . 5 . . Robot Analysis 5 | . 2 . . . 2 1 . . . . . Prototype ID Bank 5 | . 1 . . . 1 . . . 3 . . Open Door 1 | . . 1 . . . . . . . . . Branch Access Points 1 | . . . . . . 1 . . . . . Repair Station Index 1 | . 1 . . . . . . . . . . Alert Level 2 | . . . . . . 2 . . . . . Unreport Threat 3 | . 1 . . . 1 1 . . . . . Locate Traps 4 | . . . . . 1 3 . . . . . Hauler Manifests 1 | . 1 . . . . . . . . . . Derelict Proto ID Bank 1 | . . . 1 . . . . . . . . Fabricator Hacks 1 | . . . . . . 1 . . . . . Network Status 1 | . . . . . . 1 . . . . . Repair Station Hacks 8 | . 1 . . . . 7 . . . . . Scan Component 5 | . 1 . . . . 4 . . . . . Repair 3 | . . . . . . 3 . . . . . Recycling Unit Hacks . | . . . . . . . . . . . . Scanalyzer 7 | . . . . . . 3 . . . . 4 Insert Component 4 | . . . . . . 2 . . . . 2 Analyze 3 | . . . . . . 1 . . . . 2 Garrison Access Hacks 2 | . . . . . . 2 . . . . . Seal Access 2 | . . . . . . 2 . . . . . Unauthorized Hacks 15 | . 4 . . . 6 5 . . . . . Terminals 12 | . 4 . . . 4 4 . . . . . Assimilate 2 | . . . . . 2 . . . . . . Botnet 10 | . 4 . . . 2 4 . . . . . Fabricators . | . . . . . . . . . . . . Repair Stations . | . . . . . . . . . . . . Recycling Units 2 | . . . . . 2 . . . . . . Reject 1 | . . . . . 1 . . . . . . Mask 1 | . . . . . 1 . . . . . . Scanalyzers . | . . . . . . . . . . . . Garrison Access 1 | . . . . . . 1 . . . . . Jam 1 | . . . . . . 1 . . . . . Data Cores Recovered . | . . . . . . . . . . . . Used . | . . . . . . . . . . . . Hacking Detections 35 | . 4 . . . 9 19 . . . . 3 Full Trace Events . | . . . . . . . . . . . . Feedback Events . | . . . . . . . . . . . . Feedback Blocked . | . . . . . . . . . . . . Robot Schematics Acquired 5 | . . . . . . . . . 5 . . Robots Built . | . . . . . . . . . . . . Authchips . | . . . . . . . . . . . . Time . | . . . . . . . . . . . . Total Robot Build Rating . | . . . . . . . . . . . . Part Schematics Acquired 13 | . . . . . . 1 . . 10 . 2 Parts Built . | . . . . . . . . . . . . Authchips . | . . . . . . . . . . . . Time . | . . . . . . . . . . . . Total Part Build Rating . | . . . . . . . . . . . . Parts Repaired 3 | . . . . . . 3 . . . . . Time 91 | . . . . . . 91 . . . . . Parts Recycled . | . . . . . . . . . . . . Recycled Matter . | . . . . . . . . . . . . Retrieved Matter . | . . . . . . . . . . . . Retrieved Components . | . . . . . . . . . . . . Parts Scanalyzed 4 | . . . . . . 2 . . . . 2 Part Schematics Acquired 3 | . . . . . . 1 . . . . 2 Parts Damaged 2 | . . . . . . . . . . . 2 Bothacking | -11 -10 -10 -10 -9 -8 -7 -7 -7 -7 -6 -6 ------------ Run | Yrd Mat Min Exi Min Mat Fac Low Low Dat Pro Fac Used RIF Installer . | . . . . . . . . . . . . Robots Hacked 5 | . . . 4 1 . . . . . . . Non-combat 4 | . . . 3 1 . . . . . . . Combat 1 | . . . 1 . . . . . . . . Robot Hacks Applied 5 | . . . 4 1 . . . . . . . parse_system 5 | . . . 4 1 . . . . . . . Relay Couplers Released 1 | . . . . . . . . . . . 1 Machine Destruction 1 | . . . . . . . . . . . 1 Fabnet Peak Effective % . | . . . . . . . . . . . . Robots Rewired 2 | . . . . . . . 2 . . . . Allies Hacked . | . . . . . . . . . . . . Hacks Repelled . | . . . . . . . . . . . . Allies | -11 -10 -10 -10 -9 -8 -7 -7 -7 -7 -6 -6 -------- Run | Yrd Mat Min Exi Min Mat Fac Low Low Dat Pro Fac Total Allies 3 | . . . . . 1 . 2 . . . . Largest Group 2 | . . . . . 1 . 2 2 1 1 1 Highest-Rated Group 36 | . . . . . 10 . 36 36 16 16 16 Highest-Rated Ally 20 | . . . . . 10 . 20 20 16 16 16 Total Orders . | . . . . . . . . . . . . Ally Attacks 21 | . . . . . . . . 6 . 10 5 Total Damage 205 | . . . . . . . . 100 . 31 74 Kills 3 | . . . . . . . . 1 . 2 . Allies Corrupted . | . . . . . . . . . . . . Allies Melted . | . . . . . . . . . . . . Intel | -11 -10 -10 -10 -9 -8 -7 -7 -7 -7 -6 -6 ------- Run | Yrd Mat Min Exi Min Mat Fac Low Low Dat Pro Fac Robot Analysis Total 5 | . 2 . . . 2 1 . . . . . Derelict Logs Recovered 4 | . . 3 . 1 . . . . . . . Drone Launches . | . . . . . . . . . . . . Drone Recoveries . | . . . . . . . . . . . . Exploration | -11 -10 -10 -10 -9 -8 -7 -7 -7 -7 -6 -6 ------------- Run | Yrd Mat Min Exi Min Mat Fac Low Low Dat Pro Fac Turns Passed 12015 | 74 1722 703 426 686 1814 3877 598 334 115 263 1403 Spaces Moved 6478 | 44 894 446 275 388 894 2066 373 195 80 182 641 Core 7 | 7 . . . . . . . . . . . Treads 6471 | 37 894 446 275 388 894 2066 373 195 80 182 641 Legs . | . . . . . . . . . . . . Wheels . | . . . . . . . . . . . . Hover . | . . . . . . . . . . . . Flight . | . . . . . . . . . . . . Fastest Speed 50 | 50 160 152 152 152 155 145 145 145 145 145 145 Average Speed 153 | 142 160 152 152 152 156 156 145 145 145 145 145 Slowest Speed 230 | 160 160 160 152 225 158 230 145 145 145 145 145 Overloaded Moves . | . . . . . . . . . . . . Propulsion Burnouts . | . . . . . . . . . . . . Robots Hopped . | . . . . . . . . . . . . Cave-ins Triggered . | . . . . . . . . . . . . Exploration Rate (%) 53 | 4 97 84 70 54 61 59 57 39 68 33 16 Regions Visited 11 Branch Regions 7 Pre-discovered Areas 5 | . . 3 1 . . . . . 1 . . Known Exits Taken 2 | . . . . . 1 1 . . . . . Unknown Exits Taken 9 | 1 1 1 1 1 . . 1 1 1 1 . Scrap Searched 10 | . . 1 . 2 . . 7 . . . . Spaces Dug 29 | . 1 . . 1 11 10 . . . . 6 Terrain Destroyed 218 | . 35 . . 1 21 10 . . . . 151 Melee 20 | . . . . 1 3 10 . . . . 6 Projectile 1 | . 1 . . . . . . . . . . AOE 197 | . 34 . . . 18 . . . . . 145 Terrain Rammed . | . . . . . . . . . . . . Walls Destroyed . | . . . . . . . . . . . . Machines Disabled . | . . . . . . . . . . . . Actions | -11 -10 -10 -10 -9 -8 -7 -7 -7 -7 -6 -6 --------- Run | Yrd Mat Min Exi Min Mat Fac Low Low Dat Pro Fac Total 7939 | 52 1048 463 281 433 1208 2557 399 219 79 181 1019 Wait 836 | . 53 . . 4 205 263 2 6 . . 303 Move 6467 | 43 893 445 274 387 893 2065 372 194 79 181 641 Hop . | . . . . . . . . . . . . Pick Up 68 | 3 11 4 1 . 18 25 . 1 . . 5 Fast Attach 27 | 6 4 . . 1 1 12 . . . . 3 Attach 14 | . . . . . 4 5 1 . . . 4 Detach 2 | . . . . . . 1 . . . . 1 Swap 86 | . 11 2 1 6 23 33 . . . . 10 Drop 71 | . 5 3 1 . 17 43 . . . . 2 Fire 287 | . 64 3 . 27 37 80 21 18 . . 37 Melee 46 | . . . 4 2 7 21 . . . . 12 Ram . | . . . . . . . . . . . . Kick . | . . . . . . . . . . . . Crush 32 | . 7 6 . 6 3 9 . . . . 1 Escape Stasis . | . . . . . . . . . . . . Rewire 3 | . . . . . . . 3 . . . . Trap . | . . . . . . . . . . . . Miscellaneous . | . . . . . . . . . . . . Route ------- -11/Scrapyard -10/Materials (discovered 5 exits: [*Mat x3] / *Min x2) -10/Mines (discovered 3 exits: [*Mat x2] / *Exi) -10/Exiles -9/Mines (discovered 2 exits: *Mat x2) -8/Materials (discovered 2 exits: *Fac x2) -7/Factory (discovered 3 exits: *Fac / *Low x2) -7/Lower Caves -7/Lower Caves -7/Data Miner -6/Proximity Caves -6/Factory History --------- Turn | Location | Event 28 | -11/Scrapyard | Discovered new exit (range 16) 75 | -11/Scrapyard | Entered Materials 264 | -10/Materials | Discovered new exit (range 15) 311 | -10/Materials | Build established: Mutant 319 | -10/Materials | Discovered new exit (range 15) 1355 | -10/Materials | Discovered new exit (range 15) 1395 | -10/Materials | Discovered new exit (range 15) 1661 | -10/Materials | Discovered new exit (range 11) 1733 | -10/Materials | Central database locked down 1797 | -10/Materials | Entered Mines 1800 | -10/Mines | Met a Derelict bent on vengeance 1808 | -10/Mines | Met a Derelict shopkeep closing up shop 1927 | -10/Mines | Learned location of Storage (-9) 2111 | -10/Mines | Discovered new exit (range 11) 2128 | -10/Mines | Found a damaged Exp. Sensor Array with a note attached 2200 | -10/Mines | Received a Rocket Launcher from a helpful Derelict 2420 | -10/Mines | Learned location of 1 exit from Materials 2472 | -10/Mines | Discovered new exit (range 5) 2493 | -10/Mines | Deemed a non-threat by the Exiles lab entrance 2494 | -10/Mines | Discovered new exit (range 5) 2500 | -10/Mines | Entered Exiles 2543 | -10/Exiles | Met 8R-AWN 2569 | -10/Exiles | Met EX-HEX 2613 | -10/Exiles | Met EX-BIN 2633 | -10/Exiles | Aligned with FarCom system 2634 | -10/Exiles | Given EX-Vault access code 2669 | -10/Exiles | Opened EX-Vault 2679 | -10/Exiles | Found Gui. Plasma Cannon 2712 | -10/Exiles | Warned to stay clear of 0b10 Research branches 2765 | -10/Exiles | Learned location of Zion (-6) 2766 | -10/Exiles | Met EX-DEC 2909 | -10/Exiles | Discovered new exit (range 14) 2926 | -10/Exiles | Left Exiles lab with Gui. Plasma Cannon 2926 | -10/Exiles | Entered Mines 3068 | -9/Mines | Learned Materials stockpile data 3349 | -9/Mines | Assembled infested the area 3543 | -9/Mines | Discovered new exit (range 15) 3587 | -9/Mines | Discovered new exit (range 10) 3612 | -9/Mines | Entered Materials 3612 | -8/Materials | Evolved 4 slots: Propulsion x1, Utility x1, Weapon x2 3613 | -8/Materials | Identified exit to Factory 3907 | -8/Materials | Build established: Skirmisher 5274 | -8/Materials | Discovered exit to Factory (range 15) 5321 | -8/Materials | Build established: Scavenger-Skirmisher 5426 | -8/Materials | Entered Factory 5426 | -7/Factory | Evolved 2 slots: Propulsion x1, Utility x1 5638 | -7/Factory | Repaired Broken Adv. Treads 6369 | -7/Factory | Build established: Skirmisher 6445 | -7/Factory | Garrison activated, responded to threat 7354 | -7/Factory | Discovered new exit (range 9) 7866 | -7/Factory | Identified exit to Lower Caves 7971 | -7/Factory | Repaired Hrd. Medium Armor Plating 8339 | -7/Factory | Discovered new exit (range 6) 9278 | -7/Factory | Repaired Hrd. Medium Armor Plating 9303 | -7/Factory | Entered Lower Caves 9603 | -7/Lower Caves | Build established: Tank 9649 | -7/Lower Caves | Encountered a Warlord checkpoint 9695 | -7/Lower Caves | Attracted the attention of an 0b10 outpost 9757 | -7/Lower Caves | Destroyed 9 combat bots 9828 | -7/Lower Caves | Discovered new exit (range 9) 9901 | -7/Lower Caves | Entered another Lower Caves area 9901 | -7/Lower Caves | Accompanied by 2 allies 10194 | -7/Lower Caves | Discovered new exit (range 16) 10235 | -7/Lower Caves | Entered Data Miner 10235 | -7/Data Miner | Accompanied by 1 ally 10235 | -7/Data Miner | Discovered new exit (range 6) 10263 | -7/Data Miner | Met Data Miner 10291 | -7/Data Miner | Learned location of Section 7 (-3) 10291 | -7/Data Miner | Acquired the access code to Warlord's prototype stash 10317 | -7/Data Miner | Received God Mode back door access code from Data Miner 10350 | -7/Data Miner | Entered Proximity Caves 10350 | -6/Proximity Caves | Accompanied by 1 ally 10358 | -6/Proximity Caves | Spotter reported a threat 10377 | -6/Proximity Caves | Spotter reported a threat 10600 | -6/Proximity Caves | Discovered new exit (range 10) 10613 | -6/Proximity Caves | Entered Factory 10613 | -6/Factory | Accompanied by 1 ally 10613 | -6/Factory | Evolved 2 slots: Utility x2 10901 | -6/Factory | Build established: Gunner 10963 | -6/Factory | First assault squad dispatched 12016 | -6/Factory | Self-destructed Last Messages --------------- Slug penetrates P-60 Hacker. Destroyed Gravmag System. U-05 Engineer lays Concrete. Adv. Treads destroyed. U-05 Engineer lays Concrete. Slug penetrates R-10 Processor. Destroyed Imp. Heat Sink. Slug penetrates R-10 Processor. P-60 Hacker destroyed. Switching to secondary target: G-67 Veteran. Slug penetrates G-67 Veteran. U-05 Engineer lays Concrete. Hrd. Heavy Armor Plating destroyed. ALERT: Significant disruption in Zone 4R, multiple assault carriers dispatched. U-05 Engineer lays Concrete. Slug penetrates G-67 Veteran. G-67 Veteran destroyed. Slug penetrates Reinforced Barrier. U-05 Engineer lays Concrete. Map ----- +----------------------------------------------------+ | ?????????????????????????????????????????????# | | ?????????????????????????????????????????????# | | ?????????????????????????????????????????????# | | ??????????????????? ?????????????########## | | ?????????????????? ????????#????# "" = # | | ?????????????????? ??????? ???# ""S # | | ??????????????????? ??????? ???# "" # | | ??????????????????? ??????? ???# # | | ???????????????????# ??????? ???# + | | ???????????????????# ????????" ???# """ # | | ???????????????????# #???????" ???# """ #^ ^ | | ???????????????????# #???????? ???# """ # | | ???????????????????# #???????? #### # | | ???????????????????+ #???######" ########### | | ???????????????????# ##### # | | ???????????????????# ################ | | ???????????????????# | | ???????????????????# | | ????????????????#### " | | ???????###############+# " | | + # ! | | #### # " | | ??????????????# # u " | | ??????????????# + | | ??????????????# # * | | ??????????????# # @% u | | ??????????????# ### % #### | | ??????????????# ### % % % * u #??# | | ??????????????# ### %%! #??# | | ???????################### # T##! # ???# | | ???????+ # ## #### ## ???# | | ???????# """"" """"" # #########??? ???# | | ???????# """"" """"" # ############+#### | | ???????# """ """ / +!=| # | | ???????# ! # ####""" # | | ???????# !! # ####"T """ # | | ???????# # ##?#""" """ + | | ???????################### ##?# """ # | | ??????????################ ##?# # | | ??????????## ## ##?# # | | ??????????## ## ##?# [ ! # | | ??????????## ## ############## | | ?????????? # # # # | | ?????????? # # # ????"" """ + | | ?????????? # "" "" !+ # ????"" """ # | | ?????????? # "" "" #= # ????"" """ # ^ | | ?????????? # """ """ # # ???? ?# | | ?????????? # """ """ # ##????######?# | | ?????????? # """ """ # ############## | | ?????????? # ! # | +----------------------------------------------------+ Best States ------------- Heat Dissipation 51 Energy Generation 16 Energy Capacity 290 Matter Stores 500 Matter Capacity 500 Sight Range 16 Terrain Scan Density 10 Armor Coverage 600 Weapon Cycling 15 Evasion (%) 40 Targeting Accuracy 8 Recoil Reduction 4 Item Schematics ----------------- Hrd. Heavy Armor Plating | -7/Factory | Scanalyzed Combat Drone Bay | -7/Data Miner | Free Lgt. Regenerative Plating | -7/Data Miner | Free Biomechanical Wings | -7/Data Miner | Free Exp. Targeting Computer | -7/Data Miner | Free Com. Ion Cannon | -7/Data Miner | Free Gyrokinetic Inverter | -7/Data Miner | Free Adv. Drone Bay | -7/Data Miner | Free Tesla Rifle | -7/Data Miner | Free Focal Shield | -7/Data Miner | Free Imp. Corruption Screen | -7/Data Miner | Free Med. Treads | -6/Factory | Scanalyzed Gauss Rifle | -6/Factory | Scanalyzed Robot Schematics ------------------ M-28 Smith | -7/Data Miner | Free M-14 Sweeper | -7/Data Miner | Free L-41 Fighter | -7/Data Miner | Free O-24 Administrator | -7/Data Miner | Free Y-54 Guardian | -7/Data Miner | Free Fabricated ------------ Nothing Alien Tech Used ----------------- None Achievements -------------- None Challenges ------------ None Game ------ Seed MomentumReinforcedEngine Manual? 0 Play Time 01:30:54 Cumulative 36.7 hours Start 2024.04.11 @ 17:09:32 End 2024.04.12 @ 13:20:51 Sessions 3 Manual Loads 0 Difficulty Rogue Special Mode None Game No. 31 Rogue 31 Adventurer 0 Explorer 0 Win Type - Total 1 Types 1/0/0/0/0/0/0/0/0 Lore% 31 Gallery% 31 Achievement% 32 Wizard Run 0 Options --------- Layout 1 ASCII 0 Keyboard 0 Movement Arrows Keybinds 0 Fullscreen 1 Font 24/Smallcaps Map View 50x35 Zoom Use 0% Tactical HUD 0 Map Filters NONE Filters NONE Steam 1 RUN: 5e8d2df8-13e4-4aba-943d-462461e058fe